Cogmind - Beta 11.1 @@@ ROGUE MODE // 2022.06.22 @ 07:21:33 Player: Demise Result: Destroyed by S-27 Virus with Autogun Performance ------------- Evolutions (5) 2500 Regions Visited (22) 4400 Robots Destroyed (230) 1150 Value Destroyed (10819) 10819 Prototype IDs (28) 560 Alien Tech Used (0) 0 Bonus (1556) 1556 TOTAL SCORE: 20985 Bonus ------- High Alert Combat Kills 1461 Follower Combat Kills 2569 Entered Garrisons 1200 Used RIF Installer 2500 Friendly Fire -6174 Cogmind --------- Core Integrity 0/1000 Matter 147/300 Energy 70/100 System Corruption 3% Temperature Cool (0) Movement Flying (32) Location -5/Garrison Parts ------- > --- POWER (2) -------- (None) > --- PROPULSION (6) --- Improved Cesium-ion Thruster Improved Cesium-ion Thruster > --- UTILITY (7) ------ Advanced Signal Interpreter Relay Coupler [Sentry] (24) > --- WEAPON (2) ------- Axe Ionic Axe > --- INVENTORY (5) ---- Advanced Force Booster Hypervelocity Railgun Advanced Remote Datajack Peak State ------------ > --- POWER ------------ Micro Fission Core Micro Fission Core > --- PROPULSION ------- Improved Cesium-ion Thruster Improved Cesium-ion Thruster Improved Cesium-ion Thruster Improved Cesium-ion Thruster Nuclear Pulse Array > --- UTILITY ---------- Advanced Heat Sink Medium Storage Unit Advanced Sensor Array Advanced Signal Interpreter Improved Energy Mantle Hacking Suite Relay Coupler [Sentry] > --- WEAPON ----------- Advanced Remote Datajack Ionic Axe > --- INVENTORY -------- Improved Cesium-ion Thruster Q-thruster Advanced Force Booster Relay Coupler [Brawler] Relay Coupler [Hunter] Enhanced Nova Cannon Hypervelocity Railgun Advanced Micro-nuke Launcher Advanced Remote Datajack [Rating: 97] Favorites ----------- Power Light Fission Core Engine Light Angular Momentum Engine Power Core Light Fission Core Reactor Light Antimatter Reactor Propulsion Improved VTOL Module Wheel Armored Wheel Flight Unit Improved VTOL Module Utility Medium Storage Unit Device Seismic Detector Storage Medium Storage Unit Processor Advanced Signal Interpreter Hackware Hacking Suite Protection Layered Light Armor Plating Weapon Ionic Axe Energy Gun Improved EM Shotgun Energy Cannon Enhanced Nova Cannon Ballistic Gun Gauss Rifle Ballistic Cannon Tri-rail Accelerator Launcher Heavy Rocket Launcher Special Weapon Advanced Remote Datajack Impact Weapon Maul Slashing Weapon Ionic Axe Build | -11 -10 -10 -9 -9 -8 -8 -7 -7 -7 -7 -7 -7 -6 -6 -6 -6 -6 -6 -5 -5 -5 -5 ------- Run | Scr Mat Min Mat Sto Mat Gar Fac Was Fac Gar Fac Gar Fac Was Fac Gar Fac Gar Fac Was Fac Gar Slots Evolved 10 | . . . 2 . 2 . 2 . . . . . 2 . . . . . 2 . . . Power 1 | . . . . . . . . . . . . . . . . . . . 1 . . . Propulsion 4 | . . . 2 . 2 . . . . . . . . . . . . . . . . . Utility 5 | . . . . . . . 2 . . . . . 2 . . . . . 1 . . . Weapon . | . . . . . . . . . . . . . . . . . . . . . . . Parts Attached 509 | 4 15 4 13 21 17 32 21 10 27 19 20 27 44 8 21 36 45 41 36 12 12 24 Power 52 | . 1 . 1 2 1 4 . 3 3 . 1 1 6 . 3 8 4 5 3 1 3 2 Engine 19 | . 1 . 1 2 . 2 . 1 1 . 1 1 2 . 1 3 1 1 1 . . . Core 30 | . . . . . 1 2 . . 2 . . . 4 . 2 5 2 4 2 1 3 2 Reactor 3 | . . . . . . . . 2 . . . . . . . . 1 . . . . . Propulsion 79 | . 2 . 2 7 3 2 3 . 2 1 4 . 7 . 2 2 14 14 8 . 1 5 Treads . | . . . . . . . . . . . . . . . . . . . . . . . Leg . | . . . . . . . . . . . . . . . . . . . . . . . Wheel 6 | . . . . . . . . . . . . . . . . . . 6 . . . . Hover . | . . . . . . . . . . . . . . . . . . . . . . . Flight 73 | . 2 . 2 7 3 2 3 . 2 1 4 . 7 . 2 2 14 8 8 . 1 5 Utility 235 | 2 7 2 2 6 7 13 13 6 14 7 14 12 23 6 14 20 21 11 18 6 6 5 Device 117 | 2 4 2 1 2 4 7 5 6 10 1 7 4 9 5 6 13 8 1 8 5 5 2 Storage 4 | . . . . 1 . . . . . . 1 . 1 . . . 1 . . . . . Processor 11 | . 1 . . . . . . . . . 1 1 2 . 3 . 2 . 1 . . . Hackware 46 | . . . . . . . 4 . 2 4 3 5 6 . 2 3 6 5 4 . . 2 Protection 57 | . 2 . 1 3 3 6 4 . 2 2 2 2 5 1 3 4 4 5 5 1 1 1 Artifact . | . . . . . . . . . . . . . . . . . . . . . . . Weapon 143 | 2 5 2 8 6 6 13 5 1 8 11 1 14 8 2 2 6 6 11 7 5 2 12 Energy Gun 7 | . . . 3 . 2 . . . 1 . . . . . . 1 . . . . . . Energy Cannon 1 | . . . . . . . . . . . . . . . . . . . . . . 1 Ballistic Gun 35 | 2 3 . 4 2 3 3 1 . 3 5 . 5 . . . . 1 1 . . . 2 Ballistic Cannon 2 | . . . . . . . . . . . . . . . . . . 1 . 1 . . Launcher 29 | . 1 1 1 1 . 5 1 . . 1 . 3 3 1 . 1 1 3 2 1 1 2 Special Weapon 29 | . . . . . . . 1 . 2 3 1 3 4 1 1 3 2 1 3 1 1 2 Impact Weapon 15 | . 1 1 . 3 1 5 2 . . . . . . . 1 . . . . . . 1 Slashing Weapon 25 | . . . . . . . . 1 2 2 . 3 1 . . 1 2 5 2 2 . 4 Piercing Weapon . | . . . . . . . . . . . . . . . . . . . . . . . Special Melee Weapon . | . . . . . . . . . . . . . . . . . . . . . . . Unidentified Prototypes 26 | . . . 2 2 2 . . 1 1 . . . 4 3 3 . 3 . 3 2 . . Corrupted Parts 1 | . . . 1 . . . . . . . . . . . . . . . . . . . System Corruption 2 | . . . 2 . . . . . . . . . . . . . . . . . . . Parts Lost 54 | . 1 . 3 . 2 3 2 1 3 2 1 . 4 . . 3 4 2 1 . 1 21 Power 11 | . . . 1 . 1 1 . . 1 . . . . . . 1 . 1 1 . . 4 Propulsion 21 | . . . 2 . 1 1 . . . 1 . . 2 . . 2 3 1 . . . 8 Utility 15 | . . . . . . 1 2 . 2 . 1 . 1 . . . 1 . . . 1 6 Weapon 7 | . 1 . . . . . . 1 . 1 . . 1 . . . . . . . . 3 Highest Loss Streak 9 | . 1 . 1 . 1 2 1 1 1 1 1 . 2 . . 2 2 2 1 . 1 9 To Critical Strikes . | . . . . . . . . . . . . . . . . . . . . . . . Average Slot Usage (%) 90 | . 80 100 90 90 92 96 96 96 96 83 83 81 87 86 92 93 95 93 92 91 90 71 Engine 3 | . 8 14 8 11 1 2 7 3 1 . 4 7 4 6 1 3 . . 1 . . . Core 3 | . . . . . 4 3 . . 1 7 2 . 1 . 4 1 6 5 8 11 10 6 Wheel 2 | . . . . . . . . . . . . . . . . . . 25 . . . . Flight 33 | . 20 28 41 39 50 53 43 46 45 30 29 30 28 33 39 36 38 8 28 29 29 25 Device 7 | . 13 28 19 16 5 6 5 8 9 . 6 5 5 14 5 12 2 . 3 12 9 6 Storage 5 | . . . . 3 9 9 7 7 7 7 7 7 6 6 6 6 5 6 5 5 5 3 Processor 3 | . 5 . . . . . . . . . . 2 3 6 6 6 6 6 5 5 5 5 Hackware 12 | . . . . . . . 15 7 8 15 12 4 19 10 15 11 21 22 20 11 11 11 Protection 2 | . 2 . 2 2 3 2 . 5 2 5 . 6 3 1 3 . . 3 3 1 3 . Ballistic Gun 3 | . 26 18 16 9 6 11 2 . 1 5 2 7 . . . . . . . . . . Special Weapon 3 | . . . . . . . 5 4 6 1 4 1 4 . . 5 4 6 4 5 4 . Impact Weapon 1 | . . 9 1 7 7 3 5 2 . . . . . . . . . . . . . . Slashing Weapon 4 | . . . . . . . . 4 5 3 7 2 6 6 6 5 5 5 4 4 5 3 Naked Turns . | . . . . . . . . . . . . . . . . . . . . . . . Heaviest Build 46 | 5 9 8 13 19 23 25 25 37 32 31 33 36 35 33 32 37 29 39 45 41 46 46 Greatest Support 72 | 3 8 8 16 20 30 30 30 30 36 36 37 37 38 28 34 34 34 72 37 37 37 37 Greatest Overweight (x) 15 | 1 1 . 1 1 . 5 . 2 6 . 1 . 1 1 . 7 8 8 1 1 15 4 Average Overweight (x) . | . . . . . . . . . . . . . . . . . . . . . . . Largest Inventory Capacity 10 | 5 5 5 5 10 10 10 10 10 10 10 10 10 10 10 10 10 10 10 10 10 10 10 Average Capacity 9 | 5 5 5 5 6 10 10 10 10 10 10 10 10 10 10 10 10 9 10 10 10 10 8 Most Carried 10 | 5 5 5 5 10 10 10 10 10 10 10 10 10 10 10 10 10 10 10 10 10 10 10 Average Carried 9 | 3 4 5 4 5 9 9 9 9 9 9 9 9 9 9 9 9 9 9 9 9 10 7 Final Capacity 10 | 5 5 5 5 10 10 10 10 10 10 10 10 10 10 10 10 10 10 10 10 10 10 5 Final Carried 10 | 5 5 5 5 10 10 10 9 10 10 10 8 10 10 10 10 10 10 10 10 10 10 3 Class Distribution -------------------- 28% | Sprinter 21% | Hacker-Sprinter 18% | Bothacker-Sprinter 11% | Mutant 4% | Bothacker-Mutant 4% | Scavenger-Sprinter 3% | Hacker-Mutant 3% | Scavenger-Mutant 3% | Commander-Sprinter Dominant Class ---------------- Mutant | -10/Materials Mutant | -10/Mines Scavenger-Sprinter | -9/Materials Commander-Sprinter | -9/Storage Sprinter | -8/Materials Sprinter | -8/Garrison Bothacker-Sprinter | -7/Factory Mutant | -7/Waste Sprinter | -7/Factory Sprinter | -7/Garrison Sprinter | -7/Factory Sprinter | -7/Garrison Hacker-Sprinter | -6/Factory Hacker-Sprinter | -6/Waste Hacker-Sprinter | -6/Factory Scavenger-Sprinter | -6/Garrison Hacker-Sprinter | -6/Factory Hacker-Mutant | -6/Garrison Bothacker-Sprinter | -5/Factory Sprinter | -5/Waste Sprinter | -5/Factory Sprinter | -5/Garrison Resources | -11 -10 -10 -9 -9 -8 -8 -7 -7 -7 -7 -7 -7 -6 -6 -6 -6 -6 -6 -5 -5 -5 -5 ----------- Run | Scr Mat Min Mat Sto Mat Gar Fac Was Fac Gar Fac Gar Fac Was Fac Gar Fac Gar Fac Was Fac Gar Matter Collected 8633 | 256 165 195 202 285 199 600 310 110 214 578 462 760 530 194 246 542 731 911 615 143 148 237 Remotely 312 | 78 . . . . . . . . . . . . . 194 . 40 . . . . . . Salvage Created 9762 | 100 213 108 250 332 299 510 143 359 106 541 345 676 805 152 499 311 1400 1293 509 128 489 194 Parts 438 | 7 24 2 21 18 3 28 9 3 9 32 15 25 44 5 25 12 62 38 17 6 20 13 Haulers Intercepted 25 | . 2 . 1 4 1 . . . 1 . 1 . 4 . 2 . 3 . 4 . 2 . Recyclers Shooed 1 | . . . . . . . . . . . . . . . 1 . . . . . . . Parts Field Recycled 13 | . . . . . . . . . 13 . . . . . . . . . . . . . Retrieved Matter 73 | . . . . . . . . . 73 . . . . . . . . . . . . . Parts Self-Destructed . | . . . . . . . . . . . . . . . . . . . . . . . Prevented . | . . . . . . . . . . . . . . . . . . . . . . . Kills | -11 -10 -10 -9 -9 -8 -8 -7 -7 -7 -7 -7 -7 -6 -6 -6 -6 -6 -6 -5 -5 -5 -5 ------- Run | Scr Mat Min Mat Sto Mat Gar Fac Was Fac Gar Fac Gar Fac Was Fac Gar Fac Gar Fac Was Fac Gar Combat Hostiles Destroyed 143 | . 8 . 3 3 5 16 4 . 1 26 2 16 5 . 2 8 10 16 1 . 7 10 Melee 45 | . . . . . 3 . 1 . 1 2 2 1 4 . 2 7 10 4 1 . 2 5 Guns 23 | . 6 . 3 . 2 1 . . . 5 . 3 . . . . . 3 . . . . Cannons 1 | . . . . . . . . . . . . . . . . . . . . . . 1 AOE 73 | . 2 . . 3 . 15 3 . . 19 . 12 1 . . 1 . 9 . . 5 3 Classes Destroyed 20 | 2 3 . 4 1 1 1 1 . 1 1 . 1 1 1 . 1 . . . . 1 . Worker 2 | . . . 1 . . . . . . . . . 1 . . . . . . . . . Builder 3 | . . . . . 1 . . . . . . . . . . . 1 . . . 1 . Tunneler 2 | 1 . . . . . . . . . . . . . . 1 . . . . . . . Hauler 25 | . 2 . 1 4 1 . . . 1 . 1 . 4 . 2 . 3 . 4 . 2 . Recycler 8 | 1 . . . 1 1 . . . . . . . 1 . . . 4 . . . . . Mechanic 1 | . . . . . . . 1 . . . . . . . . . . . . . . . Operator 10 | . . . 1 1 1 . . . 1 . 1 . 2 . 3 . . . . . . . Watcher 19 | . 2 . 1 1 2 . 1 . . . 3 . 2 . 1 . 3 . 2 . 1 . Swarmer 59 | . 8 . . . 3 4 3 . . 13 1 6 . . . 4 5 3 . . 4 5 Cutter 1 | . . . . . . . . . . . . . . . . . . . . . 1 . Grunt 55 | . . . 1 2 2 11 . . . 12 1 5 . . 1 1 1 10 1 . 4 3 Brawler 2 | . . . . . . 1 . . . . . 1 . . . . . . . . . . Duelist 4 | . . . . . . . . . . 1 . 1 . . . . 1 . . . . 1 Protector 1 | . . . . 1 . . . . . . . . . . . . . . . . . . Sentry 12 | . . . 2 . . . 1 . . . 2 1 1 . 1 1 1 2 . . . . Demolisher 1 | . . . . . . . . . . . . . . . . 1 . . . . . . Hunter 6 | . . . . . . . . . . . . 2 . . . 1 . 3 . . . . Programmer 10 | . . . . . . . . . 1 . . . 3 . 1 . 4 1 . . . . Heavy 1 | . . . . . . . . . . . . . 1 . . . . . . . . . Behemoth 3 | . . . . . . . . . . . . . . . . 1 . 1 . . . 1 Martyr 4 | . . . . . . . . . . . . . . 2 . . . . . 2 . . Best Kill Streak 7 | 2 5 . 2 4 5 4 3 . 2 7 1 3 3 . 2 2 5 6 2 . 6 5 Combat Bots Only 7 | . 3 . 2 3 3 4 3 . 1 7 1 3 2 . 1 2 3 6 1 . 5 5 Max Kills in Single Turn 3 | 1 1 1 1 3 1 3 2 . 1 3 1 3 2 1 1 1 1 3 1 1 3 2 Gunslinging . | . . . . . . . . . . . . . . . . . . . . . . . Exploded 3 | . 1 . . 3 . 3 2 . . 3 . 3 1 . . 1 . 3 . . 3 2 Melee 1 | . . . . . 1 . 1 . 1 1 1 1 1 . 1 1 1 1 1 . 1 1 Uniques/NPCs Destroyed 1 | . . 1 . . . . . . . . . . . . . . . . . . . . YI-UF0 (-10/Mines) Combat | -11 -10 -10 -9 -9 -8 -8 -7 -7 -7 -7 -7 -7 -6 -6 -6 -6 -6 -6 -5 -5 -5 -5 -------- Run | Scr Mat Min Mat Sto Mat Gar Fac Was Fac Gar Fac Gar Fac Was Fac Gar Fac Gar Fac Was Fac Gar Damage Taken 8592 | . 379 15 265 125 331 288 184 47 421 394 126 436 688 . 180 416 638 819 843 . 240 1757 Core 2377 | . 176 . 91 28 85 37 23 47 120 82 48 55 201 . 19 95 105 151 383 . 9 622 Absorbed by Shields 253 | . . . . . . 25 . . . . . . . . . 26 4 75 66 . . 57 Redirected to Shielding 249 | . 9 . 4 7 24 15 . . . . . . . . . . . . 131 . 21 38 Regen/Repaired (Parts) 1216 | . . . . . . . 98 . 83 . 304 . . . . . 593 . 138 . . . Core Remaining (%) 59 | 100 . 29 . 70 . 77 . . . . . 46 . . . . . 32 . . . . Volleys Fired 501 | 4 28 45 30 11 17 36 12 . 15 56 12 62 31 . . 22 21 46 26 . 4 23 Largest 2 | 2 2 1 2 2 2 2 1 . 1 2 1 2 1 . . 1 1 1 1 . 1 1 Hottest 120 | 40 40 20 65 46 46 46 30 . 28 67 5 67 39 . . 30 23 30 10 . 30 120 Shots Fired 591 | 8 53 45 50 17 27 48 12 . 16 60 13 69 31 . . 22 21 47 26 . 4 22 Gun 296 | 8 50 45 49 15 27 25 . . 3 20 1 31 3 . . . 3 11 . . . 5 Cannon 3 | . . . . . . . . . . . . . . . . . . . . . . 3 Launcher 100 | . 3 . 1 2 . 23 2 . . 21 . 17 4 . . 2 . 11 . . 3 11 Special 192 | . . . . . . . 10 . 13 19 12 21 24 . . 20 18 25 26 . 1 3 Kinetic 287 | 8 50 45 44 15 23 25 . . 3 20 1 31 3 . . . 3 11 . . . 5 Thermal 3 | . . . . . . . . . . . . . . . . . . . . . . 3 Explosive 100 | . 3 . 1 2 . 23 2 . . 21 . 17 4 . . 2 . 11 . . 3 11 Electromagnetic 9 | . . . 5 . 4 . . . . . . . . . . . . . . . . . Robot Hit Streak 11 | 7 9 8 11 7 10 10 11 . 4 8 3 6 6 . . 8 8 7 8 . 2 5 Robot Miss Streak 6 | . 4 2 3 1 2 2 1 . 5 2 2 3 3 . . 1 1 6 2 . 1 2 Penetration Max 1 | . . . . . . . . . . 1 . . . . . . . . . . . . Secondary Targets 2 | . 1 . . . 1 . . . . . . . . . . . . . . . . . Max Gunslinging Chain 1 | . 1 . . . 1 . . . . . . . . . . . . . . . . . Shots Hit Robots 626 | 7 27 30 33 20 36 30 17 9 14 32 22 53 41 2 21 28 62 59 37 6 14 26 Core Hits 344 | 3 15 9 16 13 7 43 2 1 3 38 5 36 25 2 8 10 19 52 7 2 12 16 Critical Kills 3 | . . . . . 1 . 1 . . . . . . . . . . . . . . 1 Critical Parts Destroyed 11 | . . . . 4 3 1 3 . . . . . . . . . . . . . . . Critical Strikes 36 | . . . . 4 4 1 4 1 . . . 5 . . 1 2 3 6 3 . 1 1 Smash 15 | . . . . 4 4 1 4 1 . . . . . . . . . . . . . 1 Sever 21 | . . . . . . . . . . . . 5 . . 1 2 3 6 3 . 1 . Melee Attacks 561 | . . . 1 22 32 26 16 9 38 10 35 26 49 2 46 24 87 39 35 6 23 35 Impact 111 | . . . 1 22 32 26 16 7 . . . . . . . . . . . . . 7 Slashing 450 | . . . . . . . . 2 38 10 35 26 49 2 46 24 87 39 35 6 23 28 Piercing . | . . . . . . . . . . . . . . . . . . . . . . . Sneak Attacks 80 | . . . . 4 4 . 1 1 1 . 8 . 4 2 8 2 16 12 5 6 6 . Combat Hostiles 16 | . . . . . . . . 1 . . 2 . . . 1 1 3 6 1 . 1 . Follow-up Attacks 3 | . . . . . . . . . . . . . . . . . . . . . . 3 Damage Inflicted 30687 | 71 478 236 453 1022 1108 1984 464 711 318 2348 1239 3233 2140 160 1594 854 3163 4005 1135 530 1648 1793 Guns 2548 | 71 289 236 416 165 337 300 . . 16 237 . 282 . . . . 25 174 . . . . Cannons 89 | . . . . . . . . . . . . . . . . . . . . . . 89 Explosions 9862 | . 189 . 37 210 . 1477 197 . . 2005 42 1612 647 . . 157 . 1540 . . 715 1034 Melee 18187 | . . . . 647 771 207 267 711 302 106 1197 1339 1493 160 1594 697 3137 2291 1135 530 933 670 Ramming 1 | . . . . . . . . . . . . . . . . . 1 . . . . . Kinetic 2404 | 71 289 236 342 165 267 300 . . 16 237 . 282 . . . . 25 174 . . . . Thermal 126 | . . . 37 . . . . . . . . . . . . . . . . . . 89 Explosive 9825 | . 189 . . 210 . 1477 197 . . 2005 42 1612 647 . . 157 . 1540 . . 715 1034 Electromagnetic 144 | . . . 74 . 70 . . . . . . . . . . . . . . . . . Impact 2599 | . . . . 647 771 207 267 549 . . . . . . . . . . . . . 158 Slashing 15588 | . . . . . . . . 162 302 106 1197 1339 1493 160 1594 697 3137 2291 1135 530 933 512 Piercing . | . . . . . . . . . . . . . . . . . . . . . . . Highest Corruption 8 | . . . 2 2 . . 1 1 4 4 4 4 5 5 6 6 7 8 2 2 3 3 Average Corruption 4 | . . . 2 2 . . 1 1 1 4 4 4 3 5 5 6 6 7 1 2 2 3 Corruption Purged . | . . . . . . . . . . . . . . . . . . . . . . . Corruption Blocked . | . . . . . . . . . . . . . . . . . . . . . . . Effects 227 | . . . 3 8 . . . 1 15 16 19 21 16 4 22 22 33 30 . 6 6 5 Message Errors 65 | . . . 1 2 . . . . 1 5 5 11 3 1 7 6 11 9 . 2 1 . Matter Fused 50 | . . . . 1 . . . . 3 3 4 4 4 . 4 5 12 7 . 2 1 . Heat Flow Errors 35 | . . . 1 2 . . . 1 4 4 1 2 4 1 1 6 2 3 . 1 2 . Energy Discharges 23 | . . . . . . . . . 2 1 2 1 1 . 3 1 3 6 . . 1 2 Parts Rejected 2 | . . . . . . . . . . . 1 . . . 1 . . . . . . . Data Loss (minor) 28 | . . . . 2 . . . . 2 2 2 1 2 1 5 4 1 2 . 1 1 2 Data Loss (major) 10 | . . . . . . . . . 1 1 3 1 1 1 . . 1 1 . . . . Misfires 4 | . . . 1 . . . . . 1 . 1 . . . . . . 1 . . . . Alerts 7 | . . . . . . . . . 1 . . . 1 . 1 . 3 1 . . . . Weapon Failures 3 | . . . . 1 . . . . . . . 1 . . . . . . . . . 1 Overload Shots . | . . . . . . . . . . . . . . . . . . . . . . . Overflow Damage 3420 | . 22 . . 257 298 125 227 37 45 139 237 127 222 . 300 . 507 378 189 75 175 60 Projectiles . | . . . . . . . . . . . . . . . . . . . . . . . Explosions 443 | . 22 . . . . 8 57 . . 139 . 51 . . . . . 59 . . 47 60 Melee 2977 | . . . . 257 298 117 170 37 45 . 237 76 222 . 300 . 507 319 189 75 128 . Knockbacks 7 | . . . . . 5 . 2 . . . . . . . . . . . . . . . Impact 7 | . . . . . 5 . 2 . . . . . . . . . . . . . . . Kinetic . | . . . . . . . . . . . . . . . . . . . . . . . Secondary . | . . . . . . . . . . . . . . . . . . . . . . . Self-Inflicted Damage 457 | . 58 . . 25 . 32 . . . 40 65 . . . . . . 92 . . 28 117 Shots 12 | . 2 . . 1 . 2 . . . 1 1 . . . . . . 2 . . 1 2 Rammed 1 | . . . . . . . . . . . . . . . . . 1 . . . . . Targets Rammed 1 | . . . . . . . . . . . . . . . . . 1 . . . . . Kicked . | . . . . . . . . . . . . . . . . . . . . . . . Crushed . | . . . . . . . . . . . . . . . . . . . . . . . Highest Temperature 372 | . 8 6 177 250 78 102 136 188 273 281 247 175 201 212 199 287 372 252 301 230 235 38 Average Temperature 53 | . 3 2 51 115 24 30 36 33 44 50 60 35 87 111 38 92 65 103 177 49 61 20 Received Heat Transfer 1443 | . 18 9 108 45 198 147 30 . 57 87 6 126 115 . 12 88 93 42 66 . 27 169 Effects 2 | . . . . . . . . . . . . . . . . . . . 1 1 . . Energy Bleed 1 | . . . . . . . . . . . . . . . . . . . 1 . . . Interference 1 | . . . . . . . . . . . . . . . . . . . . 1 . . Siege Activations . | . . . . . . . . . . . . . . . . . . . . . . . Robots Corrupted . | . . . . . . . . . . . . . . . . . . . . . . . Combat Hostiles . | . . . . . . . . . . . . . . . . . . . . . . . Parts Fried 15 | . . . . 4 8 1 2 . . . . . . . . . . . . . . . Impact Corruptions 33 | . . . . 6 15 3 8 1 . . . . . . . . . . . . . . Robots Melted . | . . . . . . . . . . . . . . . . . . . . . . . Combat Hostiles . | . . . . . . . . . . . . . . . . . . . . . . . Parts Melted 1 | . . . . . . . . . . . . . 1 . . . . . . . . . Heat Transferred 124 | . . . 50 . . . . . . . . . . . . . . . . . . 74 Parts Sabotaged . | . . . . . . . . . . . . . . . . . . . . . . . Parts Stolen . | . . . . . . . . . . . . . . . . . . . . . . . Parts Stripped . | . . . . . . . . . . . . . . . . . . . . . . . Power Chain Reactions 1 | . . . 1 . . . . . . . . . . . . . . . . . . . Missiles Intercepted . | . . . . . . . . . . . . . . . . . . . . . . . Alert | -11 -10 -10 -9 -9 -8 -8 -7 -7 -7 -7 -7 -7 -6 -6 -6 -6 -6 -6 -5 -5 -5 -5 ------- Run | Scr Mat Min Mat Sto Mat Gar Fac Was Fac Gar Fac Gar Fac Was Fac Gar Fac Gar Fac Was Fac Gar Peak Influence 1217 | 10 354 198 408 1125 1059 1217 945 291 308 911 597 858 675 202 738 937 789 874 579 308 555 496 Initial 690 | . 6 138 76 167 475 690 638 291 182 11 478 312 450 159 141 461 491 282 458 202 215 263 Average 519 | 4 149 159 229 552 744 992 801 280 175 583 497 658 507 180 505 825 490 660 388 274 354 378 Maximum Alert Level 4 | . 1 . 2 4 3 4 3 1 1 3 2 3 2 1 3 3 3 3 2 1 2 2 Low Security (%) 13 | 100 89 100 41 21 . . . . 54 20 . . . 69 9 . . . . . . . Level 1 21 | . 10 . 56 19 . . . 100 45 12 2 8 12 30 8 . 23 20 52 100 62 39 Level 2 38 | . . . 2 31 52 4 3 . . 11 97 46 87 . 71 18 71 28 47 . 37 60 Level 3 26 | . . . . 27 47 86 96 . . 55 . 45 . . 10 81 4 51 . . . . Level 4 . | . . . . . . 8 . . . . . . . . . . . . . . . . Level 5 . | . . . . . . . . . . . . . . . . . . . . . . . High Security . | . . . . . . . . . . . . . . . . . . . . . . . Max Security . | . . . . . . . . . . . . . . . . . . . . . . . Squads Dispatched 53 | . 3 . 2 5 3 . 5 . 6 . 4 . 4 . 4 . 5 . 6 . 6 . Investigation 26 | . 3 . 1 1 1 . 4 . 4 . 1 . 2 . 2 . 2 . 3 . 2 . Extermination 7 | . . . . . . . . . 1 . 2 . . . 1 . 2 . 1 . . . Reinforcement 15 | . . . 1 2 1 . . . 1 . 1 . 2 . . . 1 . 2 . 4 . Assault 3 | . . . . 1 . . 1 . . . . . . . 1 . . . . . . . Garrison 2 | . . . . 1 1 . . . . . . . . . . . . . . . . . Intercept . | . . . . . . . . . . . . . . . . . . . . . . . Searches Triggered 2 | . . . . . . . . . . . . . . . . . 2 . . . . . Construction Impeded 2 | . . . . . . . . . . . . . 1 . . . . . . . 1 . Haulers Reinforced 1 | . . . . . . . . . . . . . . . . . . . 1 . . . Active Scanning Responses . | . . . . . . . . . . . . . . . . . . . . . . . Cargo Convoy Interrupts 1 | . . . . . . . . . . . . . 1 . . . . . . . . . Alert ID Control Effect 4 | . . . . . . . . . . . . . . . . 1 . . 3 . . . Stealth | -11 -10 -10 -9 -9 -8 -8 -7 -7 -7 -7 -7 -7 -6 -6 -6 -6 -6 -6 -5 -5 -5 -5 --------- Run | Scr Mat Min Mat Sto Mat Gar Fac Was Fac Gar Fac Gar Fac Was Fac Gar Fac Gar Fac Was Fac Gar Distress Signals 18 | . 1 1 2 3 1 . . . 1 . 1 . 3 . 1 . 2 . 1 . 1 . Communications Jammed . | . . . . . . . . . . . . . . . . . . . . . . . Distress Signals . | . . . . . . . . . . . . . . . . . . . . . . . Times Spotted 493 | . 18 2 15 30 18 17 17 1 27 30 19 25 38 6 25 28 65 26 43 6 21 16 Peak Tracking Total 15 | . 8 2 8 7 7 4 5 1 9 6 4 8 11 6 6 4 10 4 15 6 6 6 Tactical Retreats 58 | . . 1 2 2 2 1 3 . 7 2 . . 6 1 . 2 15 . 7 . 4 3 Traps | -11 -10 -10 -9 -9 -8 -8 -7 -7 -7 -7 -7 -7 -6 -6 -6 -6 -6 -6 -5 -5 -5 -5 ------- Run | Scr Mat Min Mat Sto Mat Gar Fac Was Fac Gar Fac Gar Fac Was Fac Gar Fac Gar Fac Was Fac Gar Traps Triggered 56 | . 1 . . 1 . 4 4 . 1 6 . 9 2 . 2 4 2 11 6 . 1 2 Indirectly . | . . . . . . . . . . . . . . . . . . . . . . . Trap Hack Attempts . | . . . . . . . . . . . . . . . . . . . . . . . Triggered . | . . . . . . . . . . . . . . . . . . . . . . . Disarmed . | . . . . . . . . . . . . . . . . . . . . . . . Reprogrammed . | . . . . . . . . . . . . . . . . . . . . . . . Reused . | . . . . . . . . . . . . . . . . . . . . . . . Traps Extracted . | . . . . . . . . . . . . . . . . . . . . . . . Installed . | . . . . . . . . . . . . . . . . . . . . . . . Triggered . | . . . . . . . . . . . . . . . . . . . . . . . Machines | -11 -10 -10 -9 -9 -8 -8 -7 -7 -7 -7 -7 -7 -6 -6 -6 -6 -6 -6 -5 -5 -5 -5 ---------- Run | Scr Mat Min Mat Sto Mat Gar Fac Was Fac Gar Fac Gar Fac Was Fac Gar Fac Gar Fac Was Fac Gar Machines Disabled 39 | . . . 2 5 . 2 . . . 5 2 5 . . 5 4 1 5 1 . . 2 Max in Single Turn 2 | . . . 1 1 . 1 . . . 1 2 1 . . . 1 . 1 . . . 1 Garrison Access 4 | . . . . 1 . . . . . . . . 1 . . . 2 . . . . . Garrison Relay 19 | . . . . . . 2 . . . 4 . 4 . . . 4 . 4 . . . 1 Machines Sabotaged . | . . . . . . . . . . . . . . . . . . . . . . . Garrisons Compromised . | . . . . . . . . . . . . . . . . . . . . . . . Overloaded Fab Kills . | . . . . . . . . . . . . . . . . . . . . . . . Hacking | -11 -10 -10 -9 -9 -8 -8 -7 -7 -7 -7 -7 -7 -6 -6 -6 -6 -6 -6 -5 -5 -5 -5 --------- Run | Scr Mat Min Mat Sto Mat Gar Fac Was Fac Gar Fac Gar Fac Was Fac Gar Fac Gar Fac Was Fac Gar Machines Accessed 134 | . 9 . 6 7 5 . 10 . 22 . 18 . 13 . 5 . 21 . 14 . 4 . Terminals 69 | . 7 . 5 7 3 . 5 . 11 . 7 . 7 . 1 . 11 . 4 . 1 . Fabricators 20 | . . . . . . . . . 3 . 3 . 4 . 1 . 3 . 5 . 1 . Repair Stations 16 | . . . . . . . 2 . 4 . 3 . . . . . 4 . 2 . 1 . Recycling Units 17 | . 2 . 1 . 1 . 1 . 3 . 4 . 1 . 1 . . . 3 . . . Scanalyzers 2 | . . . . . . . 1 . . . . . . . 1 . . . . . . . Garrison Access 10 | . . . . . 1 . 1 . 1 . 1 . 1 . 1 . 3 . . . 1 . Total Hacks 467 | . 28 . 18 26 13 . 25 . 59 . 56 . 49 . 38 . 97 . 48 . 10 . Successful 240 | . 14 . 11 9 8 . 12 . 29 . 37 . 26 . 26 . 40 . 24 . 4 . Failed 226 | . 13 . 7 17 5 . 13 . 30 . 19 . 23 . 12 . 57 . 24 . 6 . Catastrophic 21 | . . . 2 1 . . 2 . 1 . 1 . . . 2 . 8 . 4 . . . Database Lockouts 1 | . 1 . . . . . . . . . . . . . . . . . . . . . Manual 263 | . 23 . 15 20 8 . 10 . 25 . 30 . 35 . 12 . 50 . 31 . 4 . Terminals 249 | . 24 . 16 26 9 . 13 . 34 . 22 . 27 . 6 . 56 . 13 . 3 . Fabricators 55 | . . . . . . . . . 5 . 5 . 14 . 2 . 10 . 18 . 1 . Repair Stations 69 | . . . . . . . 6 . 13 . 13 . . . . . 28 . 4 . 5 . Recycling Units 57 | . 4 . 2 . 3 . 2 . 6 . 15 . 7 . 5 . . . 13 . . . Scanalyzers 27 | . . . . . . . 3 . . . . . . . 24 . . . . . . . Garrison Access 10 | . . . . . 1 . 1 . 1 . 1 . 1 . 1 . 3 . . . 1 . Terminal Hacks 49 | . 3 . 4 5 2 . 2 . 10 . 5 . 7 . . . 8 . 3 . . . Record 1 | . . . . 1 . . . . . . . . . . . . . . . . . . Part Schematic 3 | . . . . . . . . . 2 . . . 1 . . . . . . . . . Robot Schematic 2 | . . . . 1 . . 1 . . . . . . . . . . . . . . . Robot Analysis 7 | . 3 . 2 1 . . . . . . 1 . . . . . . . . . . . Prototype ID Bank 1 | . . . 1 . . . . . . . . . . . . . . . . . . . Open Door 1 | . . . . 1 . . . . . . . . . . . . . . . . . . Branch Access Points 1 | . . . . . 1 . . . . . . . . . . . . . . . . . Terminal Index 7 | . . . . . 1 . 1 . 1 . 1 . 2 . . . 1 . . . . . Fabricator Index 4 | . . . . . . . . . 1 . 1 . 1 . . . 1 . . . . . Garrison Index 4 | . . . . . . . . . . . 1 . 1 . . . 1 . 1 . . . Unreport Threat 5 | . . . . . . . . . 2 . . . 1 . . . 2 . . . . . Locate Traps 7 | . . . 1 . . . . . 3 . . . 1 . . . 1 . 1 . . . Security Status 1 | . . . . 1 . . . . . . . . . . . . . . . . . . Recall Investigation 1 | . . . . . . . . . 1 . . . . . . . . . . . . . Recall Extermination 1 | . . . . . . . . . . . 1 . . . . . . . . . . . Hauler Manifests 1 | . . . . . . . . . . . . . . . . . 1 . . . . . Zone Layout 2 | . . . . . . . . . . . . . . . . . 1 . 1 . . . Fabricator Hacks 8 | . . . . . . . . . 1 . 1 . 3 . . . 2 . 1 . . . Load Schematic 2 | . . . . . . . . . . . . . 1 . . . 1 . . . . . Build 6 | . . . . . . . . . 1 . 1 . 2 . . . 1 . 1 . . . Repair Station Hacks 47 | . . . . . . . 6 . 6 . 12 . . . . . 18 . 4 . 1 . Scan Component 26 | . . . . . . . 3 . 4 . 6 . . . . . 10 . 2 . 1 . Repair 21 | . . . . . . . 3 . 2 . 6 . . . . . 8 . 2 . . . Recycling Unit Hacks 15 | . 2 . 1 . 1 . 1 . 1 . 4 . 1 . 1 . . . 3 . . . Retrieve Components 15 | . 2 . 1 . 1 . 1 . 1 . 4 . 1 . 1 . . . 3 . . . Scanalyzer 20 | . . . . . . . 1 . . . . . . . 19 . . . . . . . Insert Component 8 | . . . . . . . 1 . . . . . . . 7 . . . . . . . Analyze 12 | . . . . . . . . . . . . . . . 12 . . . . . . . Garrison Access Hacks 9 | . . . . . 1 . . . 1 . 1 . 1 . 1 . 3 . . . 1 . Unlock Access 6 | . . . . . 1 . . . 1 . 1 . . . 1 . 1 . . . 1 . Seal Access 3 | . . . . . . . . . . . . . 1 . . . 2 . . . . . Unauthorized Hacks 92 | . 9 . 6 4 4 . 2 . 10 . 14 . 14 . 5 . 9 . 13 . 2 . Terminals 52 | . 7 . 5 4 3 . 2 . 5 . 5 . 7 . 1 . 8 . 4 . 1 . Track 2 | . 2 . . . . . . . . . . . . . . . . . . . . . Assimilate 7 | . . . 1 1 . . . . 1 . 1 . 1 . . . 1 . . . 1 . Botnet 38 | . 5 . 3 2 3 . 2 . 4 . 3 . 5 . 1 . 6 . 4 . . . Operators 5 | . . . 1 1 . . . . . . 1 . 1 . . . 1 . . . . . Fabricators 20 | . . . . . . . . . 4 . 3 . 4 . 1 . 1 . 6 . 1 . Fabnet 16 | . . . . . . . . . 3 . 3 . 3 . 1 . 1 . 4 . 1 . Haulers 4 | . . . . . . . . . 1 . . . 1 . . . . . 2 . . . Repair Stations . | . . . . . . . . . . . . . . . . . . . . . . . Recycling Units 20 | . 2 . 1 . 1 . . . 1 . 6 . 3 . 3 . . . 3 . . . Reject 5 | . . . . . . . . . . . 2 . 1 . 1 . . . 1 . . . Recyclers 6 | . . . . . . . . . 1 . 2 . 1 . 1 . . . 1 . . . Mask 5 | . . . . . . . . . . . 2 . 1 . 1 . . . 1 . . . Tunnel 4 | . 2 . 1 . 1 . . . . . . . . . . . . . . . . . Scanalyzers . | . . . . . . . . . . . . . . . . . . . . . . . Garrison Access . | . . . . . . . . . . . . . . . . . . . . . . . Data Cores Recovered 2 | . . . . . . . . . 1 . . . 1 . . . . . . . . . Used 1 | . . . . . . . . . 1 . . . . . . . . . . . . . Hacking Detections 104 | . 8 . 5 6 3 . 9 . 19 . 11 . 11 . 4 . 17 . 9 . 2 . Full Trace Events 20 | . . . 2 1 . . 3 . 3 . 1 . 2 . 1 . 2 . 3 . 2 . Feedback Events 1 | . . . . . . . . . 1 . . . . . . . . . . . . . Corruption 1 | . . . . . . . . . 1 . . . . . . . . . . . . . Feedback Blocked . | . . . . . . . . . . . . . . . . . . . . . . . Robot Schematics Acquired 2 | . . . . 1 . . 1 . . . . . . . . . . . . . . . Robots Built 6 | . . . . . . . . . . . 3 . 1 . . . . . 2 . . . Authchips . | . . . . . . . . . . . . . . . . . . . . . . . Time 259 | . . . . . . . . . . . 67 . 116 . . . . . 76 . . . Total Robot Build Rating 25 | . . . . . . . . . . . 12 . 3 . . . . . 10 . . . Part Schematics Acquired 10 | . . . . . . . . . 2 . . . 1 . 7 . . . . . . . Parts Built 4 | . . . . . . . . . 2 . . . 1 . . . 1 . . . . . Authchips . | . . . . . . . . . . . . . . . . . . . . . . . Time 287 | . . . . . . . . . 106 . . . 53 . . . 128 . . . . . Total Part Build Rating 26 | . . . . . . . . . 12 . . . 6 . . . 8 . . . . . Parts Repaired 20 | . . . . . . . 3 . 2 . 5 . . . . . 8 . 2 . . . Time 1087 | . . . . . . . 153 . 145 . 294 . . . . . 426 . 69 . . . Parts Recycled . | . . . . . . . . . . . . . . . . . . . . . . . Recycled Matter . | . . . . . . . . . . . . . . . . . . . . . . . Retrieved Matter . | . . . . . . . . . . . . . . . . . . . . . . . Retrieved Components 31 | . 7 . . . 3 . . . 1 . 5 . 10 . . . . . 5 . . . Parts Scanalyzed 8 | . . . . . . . 1 . . . . . . . 7 . . . . . . . Part Schematics Acquired 7 | . . . . . . . . . . . . . . . 7 . . . . . . . Parts Damaged 1 | . . . . . . . . . . . . . . . 1 . . . . . . . Bothacking | -11 -10 -10 -9 -9 -8 -8 -7 -7 -7 -7 -7 -7 -6 -6 -6 -6 -6 -6 -5 -5 -5 -5 ------------ Run | Scr Mat Min Mat Sto Mat Gar Fac Was Fac Gar Fac Gar Fac Was Fac Gar Fac Gar Fac Was Fac Gar Used RIF Installer 5 | . . . . . . 1 . . . 1 . 1 . . . 1 . 1 . . . . Coupler Efficiency 1 | . . . . . . . . . . . . . . . . . . 1 . . . . Threat Obfuscator 1 | . . . . . . . . . . 1 . . . . . . . . . . . . Alert ID Control 1 | . . . . . . . . . . . . . . . . 1 . . . . . . Program Shield 1 | . . . . . . . . . . . . 1 . . . . . . . . . . Robots Hacked 117 | . . . . . . . 7 . 6 6 5 9 13 . 5 8 16 15 15 . 7 5 Non-combat 12 | . . . . . . . 2 . 2 . . . 2 . . . 2 . 4 . . . Combat 105 | . . . . . . . 5 . 4 6 5 9 11 . 5 8 14 15 11 . 7 5 Robot Hacks Applied 88 | . . . . . . . 7 . 6 7 5 9 10 . . 6 9 13 15 . . 1 parse_system 5 | . . . . . . . . . . 1 . . . . . 1 . 3 . . . . find_chute 3 | . . . . . . . 1 . . . . . 1 . . . . . 1 . . . drop_inventory 1 | . . . . . . . . . . . . . . . . . . . 1 . . . find_recycling 1 | . . . . . . . . . . . . . 1 . . . . . . . . . check_alert 1 | . . . . . . . . . 1 . . . . . . . . . . . . . map_route 2 | . . . . . . . . . . . . . . . . . 1 . 1 . . . find_garrison 1 | . . . . . . . . . . . . . . . . . . . 1 . . . scatter_targeting 3 | . . . . . . . . . 1 . . . 2 . . . . . . . . . spike_heat 3 | . . . . . . . . . . . . . 1 . . . . 1 1 . . . disable_weapons 5 | . . . . . . . 2 . 1 . . 2 . . . . . . . . . . go_dormant 1 | . . . . . . . . . . . . . . . . . . . 1 . . . overwrite_iff 4 | . . . . . . . . . . . . . . . . . 1 3 . . . . streamctrl_high 2 | . . . . . . . . . . . . . 1 . . 1 . . . . . . formatsys_low 3 | . . . . . . . 1 . . . . . . . . . 1 . 1 . . . formatsys_high 53 | . . . . . . . 3 . 3 6 5 7 4 . . 4 6 6 8 . . 1 Relay Couplers Released 78 | . . . . 1 . 7 . . . 17 . 17 . . . 15 . 16 . . . 5 Machine Destruction 78 | . . . . 1 . 7 . . . 17 . 17 . . . 15 . 16 . . . 5 Attached 36 | . . . . . . . 3 . 1 4 2 5 3 . . 3 4 5 4 . . 2 Fabnet Peak Effective % 15 | . . . . . . . . . . . . . 15 15 15 15 15 15 15 15 15 15 Autooverrided 39 | . . . . . . . . . . . . . 5 . 5 5 7 5 1 . 7 4 Robots Rewired . | . . . . . . . . . . . . . . . . . . . . . . . Allies Hacked 2 | . . . . . . . . . . . 1 . . . . . 1 . . . . . Hacks Repelled . | . . . . . . . . . . . . . . . . . . . . . . . Allies | -11 -10 -10 -9 -9 -8 -8 -7 -7 -7 -7 -7 -7 -6 -6 -6 -6 -6 -6 -5 -5 -5 -5 -------- Run | Scr Mat Min Mat Sto Mat Gar Fac Was Fac Gar Fac Gar Fac Was Fac Gar Fac Gar Fac Was Fac Gar Total Allies 159 | . . 3 . 10 . . 4 1 4 6 9 7 12 18 5 8 15 14 12 18 8 5 Largest Group 18 | . . 3 3 10 . . 4 1 2 3 5 3 5 18 17 12 3 7 10 18 13 2 Highest-Rated Group 656 | . . 40 40 88 . . 78 16 38 56 111 69 201 656 594 423 105 164 286 656 434 78 Highest-Rated Ally 90 | . . 16 16 16 . . 32 16 26 32 32 32 90 50 47 46 41 41 54 50 54 49 Total Orders 18 | . . . . . . . 1 . . 4 . 3 3 . . . 2 2 3 . . . STAY 8 | . . . . . . . . . . 2 . 2 2 . . . . 1 1 . . . FOLLOW 6 | . . . . . . . . . . 2 . 1 1 . . . . 1 1 . . . AID 3 | . . . . . . . 1 . . . . . . . . . 1 . 1 . . . EXPLORE 1 | . . . . . . . . . . . . . . . . . 1 . . . . . Ally Attacks 908 | . . . 9 96 . . 16 8 10 18 41 28 54 75 141 90 41 26 80 106 60 9 Total Damage 20918 | . . . 105 927 . . 288 85 130 193 556 517 1013 2609 3499 1857 1305 553 1319 4736 1038 188 Kills 122 | . . . 2 18 . . 2 . 2 3 6 4 8 4 20 11 8 3 11 11 8 1 Allies Corrupted 4 | . . . . . . . 3 . . . . . 1 . . . . . . . . . Allies Melted . | . . . . . . . . . . . . . . . . . . . . . . . Intel | -11 -10 -10 -9 -9 -8 -8 -7 -7 -7 -7 -7 -7 -6 -6 -6 -6 -6 -6 -5 -5 -5 -5 ------- Run | Scr Mat Min Mat Sto Mat Gar Fac Was Fac Gar Fac Gar Fac Was Fac Gar Fac Gar Fac Was Fac Gar Robot Analysis Total 7 | . 3 . 2 1 . . . . . . 1 . . . . . . . . . . . Derelict Logs Recovered 3 | . . 3 . . . . . . . . . . . . . . . . . . . . Drone Launches 1 | . . . . . . . . . . . . . . . . . 1 . . . . . Drone Recoveries . | . . . . . . . . . . . . . . . . . . . . . . . Exploration | -11 -10 -10 -9 -9 -8 -8 -7 -7 -7 -7 -7 -7 -6 -6 -6 -6 -6 -6 -5 -5 -5 -5 ------------- Run | Scr Mat Min Mat Sto Mat Gar Fac Was Fac Gar Fac Gar Fac Was Fac Gar Fac Gar Fac Was Fac Gar Turns Passed 13807 | 44 329 364 275 368 287 701 529 188 993 779 956 730 929 186 921 979 1383 1139 677 240 434 376 Spaces Moved 21590 | 30 515 524 416 554 422 955 991 293 1762 1009 1772 1015 2076 290 1320 998 2576 1012 1632 422 683 323 Core 171 | 30 45 . . . . 27 . . 2 . . . . . . 28 4 14 . . 1 20 Treads . | . . . . . . . . . . . . . . . . . . . . . . . Legs . | . . . . . . . . . . . . . . . . . . . . . . . Wheels 707 | . . . . . . . . . . . . . . . . . . 707 . . . . Hover . | . . . . . . . . . . . . . . . . . . . . . . . Flight 20712 | . 470 524 416 554 422 928 991 293 1760 1009 1772 1015 2076 290 1320 970 2572 291 1632 422 682 303 Fastest Speed 20 | 50 37 37 31 31 24 23 23 23 23 28 28 29 26 26 23 21 21 22 22 24 24 20 Average Speed 32 | 75 42 37 34 37 25 32 23 39 30 28 29 29 28 29 23 56 24 76 26 37 25 42 Slowest Speed 800 | 100 117 37 117 117 28 300 26 177 350 32 103 29 114 98 26 400 450 520 103 92 800 250 Overloaded Moves . | . . . . . . . . . . . . . . . . . . . . . . . Propulsion Burnouts . | . . . . . . . . . . . . . . . . . . . . . . . Robots Hopped 99 | . 1 5 3 12 8 . 3 . 5 . 8 1 14 . 6 2 18 . 9 2 2 . Cave-ins Triggered 1 | . . . . . . . 1 . . . . . . . . . . . . . . . Exploration Rate (%) 60 | 3 84 91 36 88 42 83 24 88 50 94 44 90 52 89 27 76 52 82 44 96 22 24 Regions Visited 22 Branch Regions 2 Pre-discovered Areas 5 | . 2 1 1 . 1 . . . . . . . . . . . . . . . . . Known Exits Taken 8 | . . 1 1 . 1 . . . 1 . 1 . . . 1 . 1 . . . 1 . Unknown Exits Taken 3 | 1 1 . . 1 . . . . . . . . . . . . . . . . . . Scrap Searched 1 | . . 1 . . . . . . . . . . . . . . . . . . . . Spaces Dug 230 | . . . 9 4 8 11 8 . 29 16 13 42 31 . 10 . 26 . 12 . 9 2 Terrain Destroyed 983 | . 14 . 9 23 8 101 17 . 29 152 36 148 76 . 10 6 26 148 12 . 35 133 Melee 153 | . . . . 4 8 11 8 . 29 3 13 . 19 . 10 . 26 . 12 . 9 1 Projectile 10 | . . . . . . . . . . 3 . 6 . . . . . . . . . 1 AOE 820 | . 14 . 9 19 . 90 9 . . 146 23 142 57 . . 6 . 148 . . 26 131 Terrain Rammed . | . . . . . . . . . . . . . . . . . . . . . . . Walls Destroyed . | . . . . . . . . . . . . . . . . . . . . . . . Machines Disabled . | . . . . . . . . . . . . . . . . . . . . . . . Actions | -11 -10 -10 -9 -9 -8 -8 -7 -7 -7 -7 -7 -7 -6 -6 -6 -6 -6 -6 -5 -5 -5 -5 --------- Run | Scr Mat Min Mat Sto Mat Gar Fac Was Fac Gar Fac Gar Fac Was Fac Gar Fac Gar Fac Was Fac Gar Total 26897 | 42 576 651 495 636 497 1240 1244 346 2156 1437 2141 1347 2316 387 1850 1365 3185 1298 1811 493 899 485 Wait 2902 | . . 82 31 25 8 117 172 22 294 237 278 48 73 79 415 215 417 104 30 37 173 45 Move 21391 | 29 512 513 409 530 408 954 985 292 1752 1008 1756 1012 2050 289 1310 993 2542 1011 1616 418 679 323 Hop 86 | . 1 5 3 11 6 . 3 . 5 . 8 1 12 . 3 2 16 . 7 1 2 . Pick Up 139 | 4 8 . 1 5 4 9 7 5 7 8 7 12 13 3 1 5 14 10 10 5 . 1 Fast Attach 193 | 4 7 1 5 6 5 4 3 5 12 2 8 2 20 1 12 15 19 19 20 8 6 9 Attach 97 | . 2 . 3 . 4 2 6 1 5 5 4 7 9 3 3 7 9 6 10 2 . 9 Detach 83 | 1 1 . 3 2 1 1 1 . 5 3 6 8 7 3 5 6 9 5 8 2 . 6 Swap 219 | . 6 3 5 15 8 26 12 4 10 12 8 18 15 4 6 14 17 16 6 2 6 6 Drop 212 | . 11 2 4 9 4 11 4 8 13 5 5 6 24 3 10 13 19 23 20 12 6 . Fire 501 | 4 28 45 30 11 17 36 12 . 15 56 12 62 31 . . 22 21 46 26 . 4 23 Melee 557 | . . . 1 22 32 26 16 9 38 10 35 26 49 2 46 24 87 39 35 6 23 31 Ram 1 | . . . . . . . . . . . . . . . . . 1 . . . . . Kick . | . . . . . . . . . . . . . . . . . . . . . . . Crush . | . . . . . . . . . . . . . . . . . . . . . . . Escape Stasis 512 | . . . . . . 54 22 . . 89 14 144 13 . 39 49 14 19 23 . . 32 Rewire 4 | . . . . . . . 1 . . 2 . 1 . . . . . . . . . . Trap . | . . . . . . . . . . . . . . . . . . . . . . . Miscellaneous . | . . . . . . . . . . . . . . . . . . . . . . . Route ------- -11/Scrapyard -10/Materials (discovered 3 exits: *Mat x2 / [*Min]) -10/Mines (discovered 2 exits: *Mat x2) -9/Materials (discovered 3 exits: [*Min] / *Sto x2) -9/Storage -8/Materials (discovered 2 exits: *Fac / Gar) -8/Garrison (discovered 3 exits: *Fac x3) -7/Factory (discovered 2 exits: *Fac / [*Low]) -7/Waste -7/Factory (discovered 2 exits: [*Low] / Gar) -7/Garrison (discovered 3 exits: *Fac x3) -7/Factory (discovered 4 exits: *Fac x2 / [*Low] / Gar) -7/Garrison (discovered 2 exits: *Fac x2) -6/Factory (discovered 2 exits: *Fac / *Low) -6/Waste -6/Factory (discovered 3 exits: *Fac / *Low / Gar) -6/Garrison (discovered 2 exits: *Fac x2) -6/Factory (discovered 4 exits: *Fac x2 / Low / Gar) -6/Garrison (discovered 2 exits: *Fac x2) -5/Factory (discovered 3 exits: *Fac x2 / *Upp) -5/Waste -5/Factory -5/Garrison History --------- Turn | Location | Event 12 | -11/Scrapyard | Discovered new exit (range 15) 45 | -11/Scrapyard | Entered Materials 158 | -10/Materials | Core integrity fell below 50% 183 | -10/Materials | Central database locked down 186 | -10/Materials | Discovered new exit (range 10) 196 | -10/Materials | Identified exit to Materials 268 | -10/Materials | Discovered new exit (range 16) 320 | -10/Materials | Discovered exit to Materials (range 9) 374 | -10/Materials | Entered Mines 375 | -10/Mines | Learned location of Storage (-9) 402 | -10/Mines | Learned Materials stockpile data 403 | -10/Mines | YI-UF0 nonchalantly dropped a Grenade Launcher on the ground 435 | -10/Mines | Learned Materials trap positions 488 | -10/Mines | Destroyed YI-UF0 542 | -10/Mines | Discovered exit to Materials (range 9) 550 | -10/Mines | Discovered exit to Materials (range 13) 573 | -10/Mines | Build established: Mutant 602 | -10/Mines | Assisted by bots powering up and referring to "LRC-V3" 738 | -10/Mines | Entered Materials 738 | -9/Materials | Accompanied by 3 allies 738 | -9/Materials | Evolved 2 slots: Propulsion x2 739 | -9/Materials | Identified exit to Storage 740 | -9/Materials | Loaded intel: 13 trap records 920 | -9/Materials | Discovered new exit (range 7) 950 | -9/Materials | Discovered exit to Storage (range 3) 1013 | -9/Materials | Entered Storage 1040 | -9/Storage | Assisted by bots powering up and referring to "LRC-V3" 1282 | -9/Storage | Garrison activated, responded to threat 1371 | -9/Storage | Discovered new exit (range 11) 1381 | -9/Storage | Entered Materials 1381 | -8/Materials | Evolved 2 slots: Propulsion x2 1533 | -8/Materials | Discovered new exit (range 4) 1659 | -8/Materials | Garrison activated, responded to threat 1668 | -8/Materials | Identified exit to Garrison 1668 | -8/Materials | Entered Garrison 1692 | -8/Garrison | Triggered checkpoint 1692 | -8/Garrison | Triggered checkpoint 1727 | -8/Garrison | Discovered new exit (range 8) 1739 | -8/Garrison | Installed Relay Interface Framework 1848 | -8/Garrison | Triggered checkpoint 1890 | -8/Garrison | Garrison Relay disabled 1892 | -8/Garrison | Build established: Sprinter 2146 | -8/Garrison | Discovered new exit (range 12) 2316 | -8/Garrison | Discovered new exit (range 10) 2332 | -8/Garrison | Triggered checkpoint 2351 | -8/Garrison | Garrison Relay disabled 2369 | -8/Garrison | Entered Factory 2369 | -7/Factory | Evolved 2 slots: Utility x2 2426 | -7/Factory | Discovered new exit (range 15) 2513 | -7/Factory | Repaired Imp. Flight Unit 2644 | -7/Factory | Build established: Bothacker-Sprinter 2700 | -7/Factory | Discovered new exit (range 15) 2756 | -7/Factory | Repaired Imp. Flight Unit 2769 | -7/Factory | First assault squad dispatched 2808 | -7/Factory | Repaired Imp. Flight Unit? 2829 | -7/Factory | Crushed by falling debris 2898 | -7/Factory | Sucked down chute 2898 | -7/Factory | Entered Waste 2898 | -7/Waste | The area was eerily silent 2898 | -7/Waste | Met up with 1 ally sucked down the chute earlier 3010 | -7/Waste | A Compactor rumbled back to life 3010 | -7/Waste | Crushed by Compactor (1 part destroyed, 1 dropped) 3012 | -7/Waste | Spotted C-40 Crusher 3054 | -7/Waste | Discovered new exit (range 10) 3086 | -7/Waste | Entered Factory 3376 | -7/Factory | Discovered new exit (range 5) 3588 | -7/Factory | Repaired Ionic Axe 3646 | -7/Factory | Repaired Imp. Focal Shield 4013 | -7/Factory | Fabricated Nuclear Pulse Array? 4079 | -7/Factory | Identified exit to Garrison 4079 | -7/Factory | Entered Garrison 4115 | -7/Garrison | Triggered checkpoint 4127 | -7/Garrison | Garrison Relay disabled 4225 | -7/Garrison | Build established: Sprinter 4235 | -7/Garrison | Triggered checkpoint 4258 | -7/Garrison | Discovered new exit (range 15) 4327 | -7/Garrison | Triggered checkpoint 4345 | -7/Garrison | Garrison Relay disabled 4374 | -7/Garrison | Triggered checkpoint 4413 | -7/Garrison | Destroyed 7 combat bots 4425 | -7/Garrison | Garrison Relay disabled 4465 | -7/Garrison | Discovered new exit (range 10) 4469 | -7/Garrison | Expanded RIF knowledge: Threat Obfuscation 4591 | -7/Garrison | Triggered checkpoint 4619 | -7/Garrison | Discovered new exit (range 12) 4660 | -7/Garrison | Triggered checkpoint 4673 | -7/Garrison | Garrison Relay disabled 4858 | -7/Garrison | Entered Factory 4858 | -7/Factory | Accompanied by 3 allies 4941 | -7/Factory | Repaired Nuclear Pulse Array 4997 | -7/Factory | Repaired Nuclear Pulse Array 5057 | -7/Factory | Repaired Imp. VTOL Module 5088 | -7/Factory | Discovered new exit (range 6) 5143 | -7/Factory | Repaired Hvy. Rocket Launcher 5171 | -7/Factory | P-60 Hacker assimilated allied Virus 4g 5487 | -7/Factory | Discovered new exit (range 8) 5491 | -7/Factory | Identified exit to Factory 5545 | -7/Factory | Fabricated B-48 Gladiator (x3) 5682 | -7/Factory | Repaired Lyr. Light Armor Plating 5722 | -7/Factory | Discovered exit to Factory (range 7) 5811 | -7/Factory | Identified exit to Garrison 5814 | -7/Factory | Entered Garrison 5814 | -7/Garrison | Accompanied by 1 ally 5816 | -7/Garrison | Expanded RIF knowledge: Program Shield 5826 | -7/Garrison | Triggered checkpoint 5847 | -7/Garrison | Garrison Relay disabled 5898 | -7/Garrison | Triggered checkpoint 5996 | -7/Garrison | Discovered exit to Factory (range 9) 6010 | -7/Garrison | Triggered checkpoint 6063 | -7/Garrison | Discovered exit to Factory (range 15) 6073 | -7/Garrison | Triggered checkpoint 6136 | -7/Garrison | Garrison Relay disabled 6237 | -7/Garrison | Triggered checkpoint 6238 | -7/Garrison | Core integrity fell below 50% 6245 | -7/Garrison | Garrison Relay disabled 6330 | -7/Garrison | Triggered checkpoint 6417 | -7/Garrison | Garrison Relay disabled 6421 | -7/Garrison | Triggered checkpoint 6544 | -7/Garrison | Entered Factory 6544 | -6/Factory | Accompanied by 2 allies 6544 | -6/Factory | Evolved 2 slots: Utility x2 6608 | -6/Factory | Build established: Bothacker-Sprinter 6948 | -6/Factory | Discovered new exit (range 10) 6950 | -6/Factory | Identified exit to Factory 6975 | -6/Factory | Found Prototype Launcher 6975 | -6/Factory | Identified Scatter Rocket Array 7115 | -6/Factory | Build established: Hacker-Sprinter 7254 | -6/Factory | Fabricated Imp. Remote Datajack? 7301 | -6/Factory | Local machine network offline 7301 | -6/Factory | Cargo convoy interrupted 7376 | -6/Factory | Fabricated M-14 Sweeper? 7398 | -6/Factory | Discovered new exit (range 7) 7410 | -6/Factory | Found Prototype Launcher 7415 | -6/Factory | Identified exit to Lower Caves 7473 | -6/Factory | Sucked down chute 7473 | -6/Factory | Entered Waste 7483 | -6/Waste | Identified Adv. Micro-nuke Launcher 7500 | -6/Waste | Spotted C-40 Crusher 7501 | -6/Waste | Spotted C-40 Crusher 7573 | -6/Waste | Spotted C-40 Crusher 7576 | -6/Waste | Spotted C-40 Crusher 7579 | -6/Waste | Spotted C-40 Crusher 7580 | -6/Waste | Spotted C-40 Crusher 7585 | -6/Waste | Warlord forces began an assault 7585 | -6/Waste | Found Prototype Hackware 7588 | -6/Waste | Allies destroyed C-40 Crusher 7590 | -6/Waste | Allies destroyed C-40 Crusher 7594 | -6/Waste | Allies destroyed C-40 Crusher 7607 | -6/Waste | Discovered new exit (range 13) 7621 | -6/Waste | Identified exit to Factory 7659 | -6/Waste | Entered Factory 7659 | -6/Factory | Accompanied by 16 allies 7659 | -6/Factory | Identified Exp. System Shield 7771 | -6/Factory | Local machine network offline 7821 | -6/Factory | Discovered exit to Factory (range 15) 8359 | -6/Factory | First assault squad dispatched 8437 | -6/Factory | Discovered exit to Lower Caves (range 15) 8555 | -6/Factory | Identified exit to Garrison 8580 | -6/Factory | Entered Garrison 8580 | -6/Garrison | Accompanied by 9 allies 8582 | -6/Garrison | Expanded RIF knowledge: Alert ID Control 8650 | -6/Garrison | Triggered checkpoint 8673 | -6/Garrison | Garrison Relay disabled 8702 | -6/Garrison | Spotted B-75 Beast 8728 | -6/Garrison | Triggered checkpoint 8746 | -6/Garrison | Triggered checkpoint 8762 | -6/Garrison | Destroyed B-75 Beast 8768 | -6/Garrison | Triggered checkpoint 8810 | -6/Garrison | Triggered checkpoint 8867 | -6/Garrison | Garrison Relay disabled 8888 | -6/Garrison | Triggered checkpoint 8936 | -6/Garrison | Garrison Relay disabled 8991 | -6/Garrison | Discovered new exit (range 12) 9042 | -6/Garrison | Triggered checkpoint 9134 | -6/Garrison | Triggered checkpoint 9161 | -6/Garrison | Garrison Relay disabled 9475 | -6/Garrison | Discovered new exit (range 13) 9559 | -6/Garrison | Identified exit to Factory 9559 | -6/Garrison | Entered Factory 9807 | -6/Factory | Repaired Imp. Energy Mantle 9887 | -6/Factory | Repaired Exp. Propulsion Shielding 9924 | -6/Factory | Discovered exit to Lower Caves (range 60) 9971 | -6/Factory | Build established: Bothacker-Sprinter 10002 | -6/Factory | Repaired Nuclear Pulse Thruster? 10086 | -6/Factory | Repaired Adv. Remote Datajack? 10259 | -6/Factory | Fabricated Adv. Remote Datajack? 10259 | -6/Factory | Search patrols dispatched 10288 | -6/Factory | Found Prototype Launcher 10288 | -6/Factory | Identified Rocket Array 10328 | -6/Factory | Build established: Hacker-Sprinter 10345 | -6/Factory | Discovered exit to Factory (range 12) 10394 | -6/Factory | Spotted B-75 Beast 10600 | -6/Factory | Repaired Nuclear Pulse Thruster 10609 | -6/Factory | Search patrols dispatched 10617 | -6/Factory | Repaired Med. Storage Unit 10850 | -6/Factory | Discovered exit to Factory (range 14) 10879 | -6/Factory | Repaired Broken Imp. VTOL Module 10924 | -6/Factory | Repaired Ionic Axe 10942 | -6/Factory | Identified exit to Garrison 10942 | -6/Factory | Entered Garrison 10944 | -6/Garrison | Expanded RIF knowledge: Coupler Efficiency 10974 | -6/Garrison | Triggered checkpoint 10978 | -6/Garrison | Core integrity fell below 50% 11009 | -6/Garrison | Garrison Relay disabled 11221 | -6/Garrison | Spotted B-75 Beast 11251 | -6/Garrison | Destroyed B-75 Beast 11323 | -6/Garrison | Triggered checkpoint 11353 | -6/Garrison | Triggered checkpoint 11357 | -6/Garrison | Triggered checkpoint 11430 | -6/Garrison | Triggered checkpoint 11436 | -6/Garrison | Local machine network offline 11471 | -6/Garrison | Build established: Hacker-Mutant 11499 | -6/Garrison | Garrison Relay disabled 11502 | -6/Garrison | Triggered checkpoint 11545 | -6/Garrison | Discovered exit to Factory (range 12) 11630 | -6/Garrison | Triggered checkpoint 11669 | -6/Garrison | Garrison Relay disabled 11738 | -6/Garrison | Discovered exit to Factory (range 9) 11748 | -6/Garrison | Triggered checkpoint 11764 | -6/Garrison | Garrison Relay disabled 12081 | -6/Garrison | Entered Factory 12081 | -5/Factory | Accompanied by 6 allies 12081 | -5/Factory | Evolved 2 slots: Power x1, Utility x1 12128 | -5/Factory | Discovered new exit (range 7) 12140 | -5/Factory | Identified exit to Factory 12274 | -5/Factory | Repaired Adv. Remote Datajack 12279 | -5/Factory | Repaired Cld. VTOL Module? 12291 | -5/Factory | P-70 Sage assimilated allied Slayer 6a 12327 | -5/Factory | Fabricated H-66 Slayer? 12473 | -5/Factory | Spotted B-75 Beast 12588 | -5/Factory | Discovered new exit (range 9) 12590 | -5/Factory | Identified exit to Upper Caves 12598 | -5/Factory | Discovered exit to Factory (range 15) 12698 | -5/Factory | Build established: Bothacker-Sprinter 12758 | -5/Factory | Sucked down chute 12758 | -5/Factory | Entered Waste 12789 | -5/Waste | Spotted C-40 Crusher 12793 | -5/Waste | Spotted C-40 Crusher 12798 | -5/Waste | Spotted C-40 Crusher 12800 | -5/Waste | Spotted C-40 Crusher 12800 | -5/Waste | Spotted C-40 Crusher 12804 | -5/Waste | Found Prototype Launcher 12804 | -5/Waste | Identified Hellfire Missile Launcher 12822 | -5/Waste | Spotted C-40 Crusher 12837 | -5/Waste | Warlord forces began an assault 12850 | -5/Waste | Allies destroyed C-40 Crusher 12855 | -5/Waste | Allies destroyed C-40 Crusher 12861 | -5/Waste | Allies destroyed C-40 Crusher 12863 | -5/Waste | Allies destroyed C-40 Crusher 12866 | -5/Waste | Allies destroyed C-40 Crusher 12873 | -5/Waste | Discovered new exit (range 12) 12885 | -5/Waste | Found Broken Antimissile System 12954 | -5/Waste | Found Broken Adv. Force Booster 12962 | -5/Waste | Identified exit to Factory 12998 | -5/Waste | Entered Factory 12998 | -5/Factory | Accompanied by 11 allies 13297 | -5/Factory | Local machine network offline 13316 | -5/Factory | Spotted B-75 Beast 13327 | -5/Factory | Build established: Sprinter 13432 | -5/Factory | Identified exit to Garrison 13432 | -5/Factory | Entered Garrison 13474 | -5/Garrison | Triggered checkpoint 13502 | -5/Garrison | Garrison Relay disabled 13517 | -5/Garrison | Triggered checkpoint 13605 | -5/Garrison | Spotted B-75 Beast 13617 | -5/Garrison | Triggered checkpoint 13655 | -5/Garrison | Core integrity fell below 50% 13660 | -5/Garrison | Lost 3 parts (1n1u1w) 13684 | -5/Garrison | Local machine network offline 13688 | -5/Garrison | Destroyed B-75 Beast 13690 | -5/Garrison | Triggered checkpoint 13694 | -5/Garrison | Triggered checkpoint 13707 | -5/Garrison | Core integrity fell below 20% 13749 | -5/Garrison | Lost 9 parts (1p3n4u1w) 13808 | -5/Garrison | Destroyed by S-27 Virus with Autogun Last Messages --------------- 13730_ Acquired Imp. Cesium-ion Thruster. 13742_ Acquired Lgt. Nuclear Core. 13745_ Acquired 25 matter. 13751_ Acquired 21 matter. 13761_ The unstable cave ceiling collapses. 13764_ Acquired Lgt. Nuclear Core. 13766_ Acquired 23 matter. 13773_ System corrupted: Component data lost. 13775_ The unstable cave ceiling collapses. 13777_ VTOL Module destroyed. 13780_ The unstable cave ceiling collapses. 13780_ Lgt. Nuclear Core destroyed. 13790_ The unstable cave ceiling collapses. 13790_ VTOL Module destroyed. 13791_ System corrupted: Component data lost. 13794_ Q-thruster destroyed. 13797_ Lgt. Nuclear Core destroyed. 13799_ VTOL Module destroyed. 13802_ S-27 Virus destroyed. 13807_ Hacking Suite destroyed. Map ----- +----------------------------------------------------+ | ?????????????????????????????????????????????????? | | ?????????????????????????????????????????????????? | | ?????????????????????????????????????????????????? | | ????????????????????????####?????????????????????? | | ??????????????????????### #?????????????????????? | | ??????????????????????#"# #?????????????????????? | | ??????????????????????#"! #?????????????????????? | | ??????????????????????# !! #?????????????????????? | | ??????????????????????#"! #?????????????????????? | | ??????????????????????#"# #?????????????????????? | | ??????????????????????### #?????????????????????? | | ????????????????????????# #?????????????????????? | | ????????????????????????# #?????????????????????? | | ??????????????????????### ###???????????????????? | | ????????????????####### #???????????????????? | | ????????????##### # #???????????????????? | | ???????????## # ## # ##????????????????#### | | ???????????## # # ### #????????????????# | | ???????????## ## # %# ################## | | ???????????# # | | ???????????# # % % ] ! | | ?????????### !% | | ?????????# # # #%!s #################"# | | ????????## # ## #####???????????????### | | ????????# # ### #?????????????????????? | | ????????#### # ####@ #?????????????????????? | | ?????????# ## [[s%[#?????????????????????? | | ?????????###### ######= #?????????????????????? | | ?????????????## # #??# #?????????????????????? | | ?????????????## #??# #?????????????????????? | | ??????????? # ##??# #?????????????????????? | | ??????? #?????????????????????? | | ???# #?????????????????????? | | ???# # ########?????????????????????? | | ???# ## # ###????????????????????????????? | | ??? ?? ??????????????????????????????? | | ?? ??? ??????????????????????????????? | | ????! ! ?????????????????????????????? | | ???!%=! [ ?????????????????????????????? | | ????==% %! ###????????????????????????????? | | ???? ## ## #??????????????????????????????? | | ?????? ? ? ??????????????????????????????? | | ???????? ?? ??????????????????????????????? | | ??????????? ?? #??????????????????????????????? | | ??????????????# #???????????????????????????????? | | ?????????????????????????????????????????????????? | | ?????????????????????????????????????????????????? | | ?????????????????????????????????????????????????? | | ?????????????????????????????????????????????????? | | ?????????????????????????????????????????????????? | +----------------------------------------------------+ Best States ------------- Heat Dissipation 65 Energy Generation 31 Energy Capacity 900 Matter Stores 300 Matter Capacity 300 Sight Range 16 Robot Scan Range 16 Terrain Scan Density 10 EM Shielding 9 Armor Coverage 225 Resistance: KI 25 Resistance: TH 30 Core Shielding 20 Propulsion Shielding 90 Utility Shielding 66 Weapon Shielding 33 Evasion (%) 65 Targeting Accuracy 6 Melee Accuracy 6 Offensive Hacking 20 Defensive Hacking 28 Relay Coupler Types 3 Relay Coupler Value 66 Item Schematics ----------------- Imp. Focal Shield | -7/Factory | Hacked Hacking Suite | -7/Factory | Hacked Imp. Remote Datajack | -6/Factory | Hacked Adv. Remote Datajack | -6/Factory | Scanalyzed Exp. Propulsion Shielding | -6/Factory | Scanalyzed Imp. System Shield | -6/Factory | Scanalyzed Imp. Energy Mantle | -6/Factory | Scanalyzed Adv. Micro-nuke Launcher | -6/Factory | Scanalyzed Lyr. Medium Armor Plating | -6/Factory | Scanalyzed Lrn. Tractor Beam | -6/Factory | Scanalyzed Robot Schematics ------------------ A-02 Transporter | -9/Storage | Hacked O-24 Administrator | -7/Factory | Hacked Fabricated ------------ Nuclear Pulse Array | x2 | -7/Factory | Preloaded B-48 Gladiator | x3 | -7/Factory | Preloaded Imp. Remote Datajack | x1 | -6/Factory M-14 Sweeper | x1 | -6/Factory | Preloaded Adv. Remote Datajack | x1 | -6/Factory H-66 Slayer | x2 | -5/Factory | Preloaded Alien Tech Used ----------------- None Achievements -------------- None Challenges ------------ None Game ------ Seed LongswordFusionEngine Manual? 0 Play Time 05:29:45 Cumulative 639.2 hours Start 2022.06.21 @ 19:33:21 End 2022.06.22 @ 07:21:33 Sessions 3 Manual Loads 0 Difficulty Rogue Special Mode None Game No. 505 Rogue 505 Adventurer 0 Explorer 0 Win Type - Total 8 Types 7/0/0/1/0/0/0/0/0 Lore% 74 Gallery% 86 Achievement% 68 Wizard Run 0 Options --------- ASCII 0 Keyboard 1 Movement Numpad Keybinds 0 Fullscreen 1 Font 12/Terminus Map View 83x54 Tactical HUD 1 Map Filters NONE Filters NONE Steam 1 RUN: d544d080-8195-437a-bb7e-0c6e0fe1f96b